bitfinex/quotes_SOLUSD_20220307
["timestamp","ask_amount","ask_price","bid_price","bid_amount"]
[1646661448332,1.8214467,85.592,85.531,6.25]
[1646661448531,0.25,85.592,85.531,6.25]
[1646661448734,0.25,85.592,85.532,22.7454]
[1646661448934,1.5714467,85.594,85.533,6.25]
[1646661449138,1.5714467,85.603,85.54,17.5375]
[1646661449333,5.843,85.608,85.541,6.46650895]
[1646661449536,46.8133,85.609,85.541,6.46650895]
[1646661449736,46.8133,85.609,85.541,0.46650895]
[1646661450150,5.841,85.618,85.541,0.25]
[1646661450351,5.841,85.623,85.534,0.25]
[1646661450951,1.5714467,85.621,85.534,0.25]
[1646661451153,71.53388176,85.62,85.56,17.5322]
[1646661451354,71.53388176,85.62,85.561,6.25]
[1646661451952,0.25,85.619,85.561,6.25]
[1646661452153,5.841,85.618,85.561,6.25]
[1646661452352,0.25,85.617,85.561,6.25]
[1646661453357,17.5348,85.61,85.561,6.25]
[1646661453557,0.25,85.609,85.561,6.25]
[1646661453758,5.841,85.608,85.562,6.0]
[1646661454058,35.65221046,85.607,85.563,0.25]
[1646661454260,35.65221046,85.607,85.561,0.25]
[1646661454261,5.841,85.606,85.561,0.25]
[1646661454458,0.25,85.605,85.561,0.25]
[1646661454661,0.25,85.605,85.561,6.25]
[1646661455662,0.25,85.616,85.561,6.25]
[1646661455862,0.25,85.617,85.561,6.25]
[1646661456061,17.5349,85.61,85.561,6.25]
[1646661456261,0.25,85.609,85.561,6.25]
[1646661456462,0.25,85.609,85.561,0.25]
[1646661456662,0.25,85.609,85.552,0.25]
[1646661457864,0.25,85.609,85.56,17.5336]
[1646661458164,6.091,85.609,85.561,6.25]
[1646661458364,6.091,85.609,85.562,6.0]
[1646661458563,6.091,85.609,85.563,0.25]
[1646661459567,0.25,85.609,85.563,0.25]
[1646661459767,17.5374,85.6,85.552,0.25]
[1646661460066,44.72094199,85.599,85.552,0.25]
[1646661460269,44.72094199,85.599,85.544,0.25]
[1646661461468,44.72094199,85.599,85.55,17.5357]
[1646661461668,5.841,85.608,85.551,6.25]
[1646661461871,0.25,85.607,85.551,6.25]
[1646661462071,5.841,85.606,85.551,6.25]
[1646661462269,0.25,85.605,85.552,6.0]
[1646661462469,0.25,85.605,85.553,25.0928]
[1646661462770,0.25,85.605,85.56,17.5336]
[1646661462970,0.25,85.605,85.561,6.25]
[1646661463370,0.25,85.616,85.561,6.25]
[1646661463770,23.0273,85.617,85.562,6.0]
[1646661464071,23.0273,85.617,85.563,0.25]
[1646661464270,23.0273,85.617,85.57,17.5318]
[1646661464472,23.0273,85.617,85.571,6.25]
[1646661464671,5.841,85.638,85.571,6.25]
[1646661464873,1.5714467,85.641,85.572,118.6]
[1646661465072,1.5714467,85.661,85.574,118.6]
[1646661465273,1.5714467,85.675,85.576,118.6]
[1646661465475,1.5714467,85.684,85.591,118.6]
[1646661465675,37.4415021,85.683,85.592,173.9145574]
[1646661465873,37.4415021,85.683,85.6,58.3903]
[1646661466073,37.4415021,85.683,85.601,6.25]
[1646661466272,37.4415021,85.683,85.602,24.9658]
[1646661466472,39.0129488,85.683,85.603,6.25]
[1646661467273,17.5209,85.68,85.61,17.5171]
[1646661467473,17.5209,85.68,85.611,6.25]
[1646661468074,17.5209,85.68,85.611,0.25]
[1646661468474,5.838,85.679,85.62,17.5212]
[1646661468675,5.837,85.682,85.621,6.25]
[1646661468876,5.837,85.682,85.621,6.0]
[1646661469076,5.837,85.682,85.622,0.25]
[1646661469274,37.4415021,85.683,85.622,0.25]
[1646661469474,6.087,85.682,85.622,0.25]
[1646661469676,6.087,85.682,85.603,6.0]
[1646661469677,17.5206,85.68,85.603,6.0]
[1646661469876,12.088,85.679,85.602,24.9658]
[1646661470076,13.4094467,85.679,85.603,6.0]
[1646661470277,0.25,85.678,85.603,6.0]
[1646661470477,5.838,85.677,85.602,24.9658]
[1646661470677,6.25,85.676,85.602,24.9658]
[1646661470879,5.838,85.675,85.602,24.9658]
[1646661471078,0.25,85.674,85.603,0.25]
[1646661471278,34.59842296,85.659,85.61,17.5236]
[1646661471480,34.59842296,85.659,85.611,0.25]
[1646661472677,34.59842296,85.659,85.603,6.0]
[1646661472678,34.59842296,85.659,85.604,0.25]
[1646661472978,5.838,85.673,85.604,0.25]
[1646661473279,17.523,85.67,85.62,17.5218]
[1646661473478,0.25,85.669,85.621,0.25]
[1646661473880,45.93810508,85.669,85.621,0.25]
[1646661474581,45.93810508,85.669,85.612,0.25]
[1646661475782,17.5252,85.66,85.611,6.0]
[1646661475983,17.5252,85.66,85.602,24.9658]
[1646661476184,5.839,85.659,85.602,24.9658]
[1646661476584,5.839,85.668,85.602,24.9658]
[1646661476784,1.5714467,85.666,85.602,24.9658]
[1646661476984,17.5254,85.66,85.602,24.9658]
[1646661477185,5.838,85.665,85.603,6.25]
[1646661477387,0.25,85.664,85.603,6.25]
[1646661477584,5.838,85.663,85.603,6.25]
[1646661477785,0.25,85.662,85.603,6.25]
[1646661478385,5.838,85.661,85.603,6.25]
[1646661478587,23.4031,85.666,85.61,17.5241]
[1646661478786,73.2222,85.712,85.602,24.9658]
[1646661478787,1.5714467,85.695,85.611,6.25]
[1646661478992,24.2472,85.687,85.612,23.854]
[1646661479187,24.2472,85.687,85.613,6.25]
[1646661479587,41.33510925,85.686,85.62,17.5163]
[1646661479787,41.33510925,85.686,85.621,6.25]
[1646661479990,0.25,85.685,85.621,6.25]
[1646661480194,41.33510925,85.686,85.622,23.854]
[1646661480387,1.5714467,85.705,85.623,6.25]
[1646661480589,6.0,85.704,85.63,17.519]
[1646661480789,6.0,85.706,85.631,6.25]
[1646661480993,1.5714467,85.709,85.631,6.25]
[1646661480994,6.0,85.708,85.631,6.25]
[1646661481191,7.5714467,85.708,85.631,6.25]
[1646661481394,45.55523833,85.707,85.631,0.25]
[1646661481592,6.25,85.706,85.632,23.6297]
[1646661481792,6.25,85.706,85.633,6.25]
[1646661482192,23.8449,85.705,85.633,6.25]
[1646661482394,12.086,85.704,85.633,6.25]
[1646661482595,118.6,85.699,85.633,6.25]
[1646661482794,118.6,85.697,85.633,6.25]
[1646661482993,6.25,85.696,85.633,6.25]
[1646661483192,5.836,85.695,85.633,6.25]
[1646661483392,6.25,85.694,85.633,6.25]
[1646661483592,5.836,85.693,85.633,6.25]
[1646661483794,17.5208,85.69,85.633,6.25]
[1646661484015,17.5208,85.69,85.623,24.4937]
[1646661484016,12.086,85.689,85.623,24.4937]
[1646661484216,34.6649,85.689,85.624,6.0]
[1646661484415,34.6649,85.689,85.623,24.4937]
[1646661485216,34.6649,85.689,85.624,0.25]
[1646661485916,28.8289,85.689,85.624,6.25]
[1646661486117,17.5217,85.68,85.624,6.25]
[1646661486417,46.67674002,85.679,85.624,6.25]
[1646661486617,5.837,85.678,85.624,6.25]
[1646661486817,0.25,85.677,85.624,6.25]
[1646661487017,5.837,85.676,85.624,6.25]
[1646661487417,5.837,85.678,85.624,6.25]
[1646661488019,46.42674002,85.679,85.624,6.25]
[1646661488219,46.42674002,85.679,85.63,17.5199]
[1646661488420,46.42674002,85.679,85.631,0.25]
[1646661489827,46.42674002,85.679,85.64,17.5177]
[1646661490024,46.42674002,85.679,85.641,0.25]
[1646661492027,46.35538954,85.679,85.631,0.25]
[1646661492827,0.25,85.678,85.631,0.25]
[1646661493029,0.25,85.678,85.626,0.25]
[1646661493427,6.087,85.678,85.626,0.25]
[1646661493826,6.087,85.678,85.625,24.9044]
[1646661493827,5.837,85.678,85.625,24.9044]
[1646661494829,1.5714467,85.675,85.625,24.9044]
[1646661495226,0.25,85.674,85.63,17.5197]
[1646661495426,0.25,85.674,85.631,0.25]
[1646661495828,6.087,85.674,85.631,0.25]
[1646661496227,7.6584467,85.674,85.631,0.25]
[1646661496428,0.25,85.674,85.631,0.25]
[1646661496628,0.25,85.674,85.64,17.5176]
[1646661496829,0.25,85.676,85.641,0.25]
[1646661497030,0.25,85.677,85.641,0.25]
[1646661497429,7.8214467,85.677,85.641,0.25]
[1646661497628,1.8214467,85.677,85.641,0.25]
[1646661497827,1.8214467,85.677,85.626,0.25]
[1646661498027,0.25,85.677,85.626,0.25]
[1646661498229,1.8214467,85.677,85.626,0.25]
[1646661498427,1.8214467,85.677,85.626,6.25]
[1646661499127,1.8214467,85.677,85.63,17.5201]
[1646661499328,1.8214467,85.677,85.631,0.25]
[1646661499530,1.5714467,85.676,85.631,0.25]
[1646661499729,0.25,85.675,85.631,0.25]
[1646661500230,1.8214467,85.675,85.631,0.25]
[1646661500428,1.5714467,85.674,85.631,0.25]
[1646661500628,0.25,85.673,85.631,0.25]
[1646661501229,0.25,85.673,85.626,6.0]
[1646661501433,1.5714467,85.669,85.596,6.0]
[1646661501634,1.5714467,85.661,85.588,54.5485]
[1646661501829,6.37937001,85.668,85.588,54.5485]
[1646661501830,48.67556812,85.66,85.588,54.5485]
[1646661502330,24.8494467,85.667,85.6,17.526]
[1646661502529,23.278,85.667,85.601,30.2225]
[1646661502729,23.278,85.667,85.602,118.85]
[1646661502928,23.278,85.667,85.603,6.0]
[1646661503132,23.278,85.667,85.604,0.25]
[1646661503431,23.278,85.667,85.602,0.25]
[1646661503829,23.278,85.667,85.603,5.838]
[1646661504030,23.278,85.667,85.62,17.5196]
[1646661504228,23.278,85.667,85.621,12.088]
[1646661504630,23.278,85.667,85.621,6.25]
[1646661505438,39.19758968,85.671,85.621,6.25]
[1646661505632,1.5714467,85.666,85.622,5.837]
[1646661505933,1.5714467,85.658,85.623,6.0]
[1646661506130,40.69861688,85.657,85.623,6.0]
[1646661506331,1.5714467,85.655,85.612,6.0]
[1646661506531,42.02006358,85.657,85.612,6.0]
[1646661506733,5.838,85.677,85.62,17.5217]
[1646661506734,1.5714467,85.664,85.62,17.5217]
[1646661506933,1.5714467,85.666,85.621,6.25]
[1646661507133,1.5714467,85.668,85.613,0.25]
[1646661507734,46.78849081,85.667,85.613,0.25]
[1646661508134,1.5714467,85.664,85.613,0.25]
[1646661508335,1.8214467,85.663,85.613,0.25]
[1646661508539,1.5714467,85.662,85.613,0.25]
[1646661508737,0.25,85.661,85.62,17.522]
[1646661508937,1.5714467,85.663,85.621,6.25]
[1646661509135,1.5714467,85.666,85.621,6.25]
[1646661509335,1.5714467,85.67,85.622,22.7747]
[1646661509537,1.5714467,85.671,85.623,6.25]
[1646661509735,1.5714467,85.674,85.63,17.5198]
[1646661509935,1.5714467,85.674,85.631,6.25]
[1646661510136,1.5714467,85.674,85.632,22.7747]
[1646661510437,1.5714467,85.674,85.633,6.25]
[1646661511041,1.5714467,85.673,85.633,6.25]
[1646661512036,1.5714467,85.674,85.633,6.25]
[1646661512238,1.8214467,85.673,85.633,0.25]
[1646661512439,1.5714467,85.671,85.633,0.25]
[1646661512637,46.46813076,85.668,85.633,0.25]
[1646661513038,1.5714467,85.668,85.633,0.25]
[1646661513738,1.5714467,85.669,85.633,6.25]
[1646661513938,1.5714467,85.673,85.633,6.25]
[1646661514139,1.5714467,85.674,85.633,6.25]
[1646661514738,1.5714467,85.674,85.64,17.5179]
[1646661514940,1.5714467,85.674,85.641,6.25]
[1646661515141,1.5714467,85.675,85.633,6.25]
[1646661515341,1.5714467,85.674,85.633,6.25]
[1646661515543,1.5714467,85.671,85.633,6.25]
[1646661516444,1.5714467,85.673,85.633,6.25]
[1646661516642,1.5714467,85.674,85.633,6.25]
[1646661516843,1.5714467,85.674,85.633,0.25]
[1646661517243,1.5714467,85.673,85.633,6.25]
[1646661517443,1.5714467,85.674,85.633,0.25]
[1646661517843,1.8214467,85.673,85.633,6.0]
[1646661518044,1.5714467,85.669,85.633,6.0]
[1646661518244,1.5714467,85.662,85.617,6.0]
[1646661518445,1.5714467,85.658,85.609,6.0]
[1646661518647,1.8214467,85.657,85.592,6.0]
[1646661518847,1.8214467,85.657,85.593,5.839]
[1646661519046,1.8214467,85.657,85.591,124.439]
[1646661519247,1.5714467,85.657,85.6,17.5257]
[1646661519447,1.5714467,85.657,85.601,29.2845]
[1646661519649,1.5714467,85.66,85.601,29.0345]
[1646661519846,1.5714467,85.66,85.602,0.25]
[1646661520046,1.5714467,85.663,85.603,5.839]
[1646661520258,1.5714467,85.663,85.604,6.25]
[1646661520448,1.5714467,85.663,85.605,5.838]
[1646661520647,1.5714467,85.663,85.606,6.25]
[1646661520849,1.5714467,85.664,85.607,5.838]
[1646661521048,1.5714467,85.664,85.608,6.25]
[1646661521250,1.5714467,85.664,85.61,17.5228]
[1646661521452,1.5714467,85.664,85.611,12.088]
[1646661521653,39.48315355,85.663,85.612,24.0909]
[1646661521848,1.8214467,85.662,85.613,11.838]
[1646661522049,1.5714467,85.66,85.613,6.0]
[1646661523051,1.5714467,85.659,85.613,6.0]
[1646661523251,1.5714467,85.659,85.614,0.25]
[1646661523652,1.5714467,85.66,85.614,0.25]
[1646661524250,19.0968467,85.66,85.614,0.25]
[1646661524651,1.5714467,85.659,85.614,0.25]
[1646661524851,1.5714467,85.658,85.612,0.25]
[1646661525052,1.5714467,85.658,85.602,0.25]
[1646661525250,1.5714467,85.659,85.603,5.839]
[1646661525451,1.5714467,85.659,85.604,6.25]
[1646661525652,1.5714467,85.659,85.61,17.5242]
[1646661525853,1.5714467,85.66,85.611,6.25]
[1646661526555,1.5714467,85.659,85.611,6.25]
[1646661526753,1.5714467,85.66,85.62,17.5221]
[1646661526954,1.5714467,85.661,85.621,6.25]
[1646661527156,25.8515467,85.662,85.621,6.25]
[1646661527558,24.2801,85.662,85.621,6.25]
[1646661527956,24.2801,85.662,85.621,0.25]
[1646661528158,24.2801,85.662,85.621,6.25]
[1646661528659,0.25,85.662,85.621,6.25]
[1646661528856,1.8214467,85.662,85.621,6.25]
[1646661529060,1.5714467,85.661,85.621,6.25]
[1646661529258,1.5714467,85.66,85.622,6.0]
[1646661529460,1.5714467,85.659,85.623,0.25]
[1646661529658,1.5714467,85.66,85.621,0.25]
[1646661530459,19.0968467,85.66,85.621,0.25]
[1646661530660,46.05830029,85.656,85.613,6.0]
[1646661530860,1.5714467,85.649,85.565,100.0]
[1646661531062,41.22599309,85.639,85.565,124.9868]
[1646661531263,0.1565492,85.63,85.565,124.9868]
[1646661531464,1.5714467,85.626,85.565,24.9868]
[1646661531666,59.58434944,85.62,85.565,24.9868]
[1646661531867,0.25,85.619,85.565,24.9868]
[1646661532466,0.25,85.619,85.566,0.25]
[1646661532679,42.04694944,85.62,85.57,17.5323]
[1646661532879,0.25,85.619,85.571,6.0]
[1646661533280,0.25,85.619,85.566,24.9126]
[1646661533482,0.25,85.619,85.567,6.0]
[1646661533680,17.5356,85.61,85.567,6.0]
[1646661533880,0.25,85.609,85.567,6.0]
[1646661534078,0.25,85.609,85.568,0.25]
[1646661535279,59.58074944,85.62,85.568,0.25]
[1646661535280,0.25,85.619,85.568,0.25]
[1646661535479,5.841,85.625,85.568,0.25]
[1646661535681,1.5714467,85.635,85.568,118.85]
[1646661535879,1.5714467,85.657,85.571,0.11556488]
[1646661536081,5.84,85.656,85.572,118.6]
[1646661536280,6.0,85.672,85.574,118.6]
[1646661536281,5.84,85.658,85.574,118.6]
[1646661536481,38.85396075,85.659,85.59,17.5238]
[1646661536681,5.839,85.658,85.591,6.25]
[1646661537083,0.25,85.657,85.591,6.25]
[1646661537381,5.839,85.656,85.6,17.5254]
[1646661537583,0.25,85.655,85.601,6.25]
[1646661537882,5.839,85.654,85.602,0.25]
[1646661538082,6.25,85.653,85.591,0.25]
[1646661538283,5.839,85.652,85.591,0.25]
[1646661538482,0.25,85.651,85.591,0.25]
[1646661538682,23.3667,85.65,85.591,0.25]
[1646661538882,6.0,85.649,85.582,0.25]
[1646661539083,6.09,85.648,85.582,0.25]
[1646661539282,48.36250189,85.646,85.582,6.25]
[1646661539485,1.5714467,85.644,85.582,6.25]
[1646661539685,17.5312,85.63,85.582,0.25]
[1646661539883,17.5312,85.63,85.566,6.25]
[1646661539884,6.09,85.629,85.566,6.25]
[1646661540084,40.36161908,85.628,85.566,6.0]
[1646661540285,6.091,85.627,85.566,6.0]
[1646661540984,0.25,85.627,85.57,17.5324]
[1646661541184,0.25,85.627,85.571,6.0]
[1646661541384,40.36161908,85.628,85.572,0.25]
[1646661541586,40.36161908,85.628,85.567,0.25]
[1646661541788,40.36161908,85.628,85.57,17.5311]
[1646661542089,40.36161908,85.628,85.571,6.25]
[1646661542288,40.36161908,85.628,85.572,0.25]
[1646661543290,24.61,85.639,85.58,17.5269]
[1646661543487,0.25,85.638,85.581,6.25]
[1646661544088,0.25,85.638,85.581,0.25]
[1646661544288,42.06031912,85.638,85.581,0.25]
[1646661544490,42.06031912,85.638,85.57,58.4248]
[1646661544691,42.06031912,85.638,85.571,6.25]
[1646661546192,42.06031912,85.638,85.58,17.5298]
[1646661546393,42.06031912,85.638,85.581,29.7453]
[1646661546791,5.84,85.637,85.581,29.7453]
[1646661546991,0.25,85.636,85.581,29.7453]
[1646661547193,0.25,85.636,85.59,17.5284]
[1646661547392,0.25,85.636,85.591,6.25]
[1646661547691,0.25,85.636,85.591,6.0]
[1646661547891,5.84,85.635,85.591,6.0]
[1646661548091,5.84,85.635,85.581,23.4953]
[1646661548092,0.25,85.634,85.582,6.0]
[1646661548292,5.84,85.633,85.582,6.0]
[1646661548591,0.25,85.632,85.582,6.0]
[1646661548791,5.84,85.631,85.583,0.25]
[1646661548993,0.25,85.63,85.583,0.25]
[1646661549191,5.84,85.629,85.583,0.25]
[1646661549392,0.25,85.628,85.583,0.25]
[1646661551294,0.25,85.629,85.583,0.25]
[1646661552496,5.84,85.628,85.583,0.25]
[1646661552695,0.25,85.627,85.583,0.25]
[1646661553596,17.534,85.62,85.583,0.25]
[1646661553798,40.51792672,85.619,85.583,0.25]
[1646661553996,40.51792672,85.619,85.568,0.25]
[1646661554196,41.02234192,85.631,85.567,0.25]
[1646661554397,5.841,85.63,85.567,0.25]
[1646661554799,5.841,85.63,85.566,6.0]
[1646661554998,24.8687,85.629,85.566,6.0]
[1646661555200,86.90050868,85.619,85.566,6.0]
[1646661555401,86.90050868,85.616,85.545,5.841]
[1646661555602,0.20958285,85.613,85.532,5.841]
[1646661555801,0.20958285,85.611,85.532,5.841]
[1646661555999,92.74350868,85.61,85.522,5.843]
[1646661556200,86.90050868,85.608,85.522,5.843]
[1646661556500,86.90050868,85.606,85.522,5.843]
[1646661556799,86.90050868,85.602,85.522,5.843]
[1646661556999,86.90050868,85.6,85.522,5.843]
[1646661557199,86.90050868,85.598,85.522,5.843]
[1646661557402,34.8986,85.597,85.522,5.843]
[1646661557799,34.8986,85.597,85.523,0.25]
[1646661558000,86.90050868,85.596,85.524,5.843]
[1646661558200,17.5411,85.59,85.525,0.25]
[1646661558400,43.40697343,85.589,85.526,5.844]
[1646661558601,43.15697343,85.589,85.527,0.25]
[1646661558802,0.25,85.588,85.528,5.843]
[1646661559000,124.693,85.588,85.529,0.25]
[1646661559201,6.093,85.588,85.53,5.843]
[1646661559401,6.093,85.588,85.531,6.25]
[1646661559700,6.093,85.588,85.532,5.843]
[1646661559903,6.093,85.588,85.533,6.25]
[1646661560100,17.5435,85.58,85.533,6.25]
[1646661560301,0.25,85.579,85.533,6.25]
[1646661560503,0.25,85.579,85.533,0.25]
[1646661560703,0.25,85.579,85.524,5.844]
[1646661560902,0.25,85.579,85.423,0.25]
[1646661560903,0.25,85.579,85.47,16.85]
[1646661561101,0.25,85.579,85.423,0.25]
[1646661561102,0.25,85.579,85.46,16.85]
[1646661561304,0.12796853,85.578,85.47,24.6592659]
[1646661561703,37.8624916,85.576,85.483,5.845]
[1646661561903,17.5443,85.57,85.49,17.5472]
[1646661562102,12.095,85.569,85.503,6.0]
[1646661562702,0.25,85.569,85.504,5.845]
[1646661562904,0.25,85.569,85.505,6.0]
[1646661563102,0.25,85.569,85.506,5.845]
[1646661563302,17.5444,85.57,85.507,6.25]
[1646661563504,0.25,85.569,85.508,5.845]
[1646661563802,0.25,85.569,85.509,6.25]
[1646661564202,0.25,85.569,85.51,5.845]
[1646661564402,0.25,85.569,85.511,0.25]
[1646661564603,5.845,85.578,85.52,17.5426]
[1646661564804,16.85,85.6,85.521,30.4653]
[1646661565005,5.844,85.599,85.521,30.4653]
[1646661565405,5.844,85.578,85.521,36.3093]
[1646661565808,5.844,85.578,85.521,30.4653]
[1646661566206,0.25,85.577,85.53,17.5397]
[1646661566428,0.25,85.577,85.531,6.25]
[1646661567028,0.25,85.577,85.531,0.25]
[1646661567428,5.844,85.576,85.523,0.25]
[1646661567632,0.25,85.575,85.523,0.25]
[1646661567829,5.844,85.574,85.523,0.25]
[1646661568030,0.25,85.573,85.523,0.25]
[1646661568230,0.25,85.573,85.521,24.2153]
[1646661568431,5.844,85.572,85.511,24.7067]
[1646661568631,0.25,85.571,85.511,24.7067]
[1646661568930,5.845,85.57,85.511,24.7067]
[1646661569130,6.25,85.569,85.511,24.7067]
[1646661569331,5.845,85.568,85.511,24.7067]
[1646661569531,38.80637006,85.566,85.511,24.7067]
[1646661569731,12.095,85.565,85.512,0.25]
[1646661571232,17.5465,85.56,85.512,0.25]
[1646661571432,12.095,85.559,85.512,0.25]
[1646661571832,6.095,85.559,85.512,0.25]
[1646661572032,0.25,85.559,85.512,0.25]
[1646661572837,0.25,85.559,85.512,6.25]
[1646661576535,6.25,85.562,85.512,6.25]
[1646661577437,0.25,85.562,85.512,6.25]
[1646661577638,22.7677,85.564,85.512,6.25]
[1646661577839,22.7677,85.564,85.513,0.23893379]
[1646661578041,5.845,85.589,85.513,118.83893379]
[1646661578241,30.1725,85.604,85.515,0.25940028]
[1646661578638,30.1725,85.604,85.521,0.35874416]
[1646661578838,30.1725,85.604,85.521,6.60874416]
[1646661579038,30.1725,85.604,85.523,0.35874416]
[1646661579238,30.1725,85.604,85.523,6.60874416]
[1646661579641,0.25,85.603,85.523,6.60874416]
[1646661579839,5.843,85.602,85.525,0.35874416]
[1646661580040,0.25,85.601,85.525,6.60874416]
[1646661580243,5.843,85.6,85.525,6.60874416]
[1646661580441,0.25,85.599,85.525,6.60874416]
[1646661580640,5.843,85.598,85.525,6.60874416]
[1646661580843,0.25,85.597,85.525,6.60874416]
[1646661581041,5.843,85.596,85.525,6.60874416]
[1646661581240,5.843,85.596,85.54,17.5364]
[1646661581441,5.843,85.596,85.541,6.25]
[1646661582141,5.843,85.596,85.541,0.25]
[1646661582543,5.843,85.596,85.532,0.25]
[1646661583041,5.843,85.596,85.532,118.85]
[1646661583242,5.843,85.596,85.533,6.0]
[1646661583444,5.843,85.596,85.534,0.25]
[1646661583645,0.25,85.597,85.534,22.8095]
[1646661583843,42.24736057,85.6,85.534,22.8095]
[1646661583844,0.25,85.599,85.535,6.0]
[1646661584043,0.25,85.599,85.536,0.25]
[1646661584245,0.25,85.599,85.54,17.5381]
[1646661584445,0.25,85.599,85.541,6.25]
[1646661584644,0.25,85.599,85.536,0.25]
[1646661586145,5.843,85.598,85.55,17.5362]
[1646661586344,0.25,85.597,85.551,6.25]
[1646661586545,5.841,85.596,85.551,6.25]
[1646661586747,5.841,85.596,85.551,0.25]
[1646661586748,0.25,85.595,85.551,0.25]
[1646661586946,5.841,85.594,85.551,0.25]
[1646661587145,0.25,85.593,85.535,6.0]
[1646661587347,5.843,85.592,85.535,6.0]
[1646661587546,0.25,85.591,85.535,6.0]
[1646661587745,5.843,85.59,85.535,6.0]
[1646661587946,0.25,85.589,85.535,6.0]
[1646661588148,47.42429363,85.587,85.535,6.0]
[1646661588346,0.25,85.586,85.535,6.0]
[1646661588550,0.25,85.586,85.536,0.25]
[1646661588747,5.843,85.585,85.536,0.25]
[1646661588946,17.5423,85.58,85.536,0.25]
[1646661589146,0.25,85.579,85.536,0.25]
[1646661591850,0.25,85.585,85.536,0.25]
[1646661592049,5.843,85.584,85.536,0.25]
[1646661592249,0.25,85.583,85.536,0.25]
[1646661593250,17.5425,85.58,85.536,0.25]
[1646661593450,0.25,85.579,85.536,0.25]
[1646661594852,0.25,85.585,85.536,0.25]
[1646661595054,5.843,85.584,85.536,0.25]
[1646661595253,0.25,85.583,85.536,0.25]
[1646661595453,5.843,85.582,85.536,0.25]
[1646661595653,0.25,85.581,85.536,0.25]
[1646661595854,5.843,85.58,85.536,0.25]
[1646661596053,0.25,85.579,85.536,0.25]
[1646661596253,5.844,85.578,85.536,0.25]
[1646661596457,5.844,85.585,85.536,0.25]
[1646661596655,6.0,85.584,85.536,0.25]
[1646661596855,23.6872,85.586,85.536,0.25]
[1646661597055,47.42429363,85.587,85.536,0.25]
[1646661597255,5.843,85.618,85.536,0.25]
[1646661597256,24.1506,85.617,85.541,118.6]
[1646661597458,11.841,85.616,85.543,118.6]
[1646661597658,5.841,85.616,85.545,0.12512853]
[1646661597860,5.841,85.628,85.545,0.12512853]
[1646661598058,5.841,85.648,85.547,0.37722437]
[1646661598258,2.83613526,85.641,85.549,0.37722437]
[1646661598457,5.841,85.64,85.547,6.25]
[1646661598659,5.841,85.646,85.547,6.25]
[1646661598858,29.9916,85.646,85.547,6.25]
[1646661599061,6.0,85.645,85.547,6.25]